bitfinex-derivatives/quotes_SOLF0:USTF0_20240908
["timestamp","ask_amount","ask_price","bid_price","bid_amount"]
[1725817088235,3.1089,128.67,128.64,8.36]
[1725817092634,4.85888569,128.73,128.66,8.36]
[1725817092832,1.2872,128.74,128.7,8.36]
[1725817093034,3.85048608,128.73,128.7,8.36]
[1725817093240,3.1077,128.72,128.7,8.36]
[1725817093442,6.97684756,128.72,128.7,8.36]
[1725817094337,3.1079,128.71,128.7,8.36]
[1725817096034,3.86914756,128.72,128.67,9.6848]
[1725817096239,8.36,128.73,128.67,9.6848]
[1725817096845,8.36,128.71,128.67,1.3248]
[1725817098143,3.87804982,128.73,128.67,9.6848]
[1725817098444,8.36,128.73,128.67,9.6848]
[1725817098645,3.1083,128.7,128.67,9.6848]
[1725817099350,3.1084,128.69,128.67,9.6848]
[1725817101950,3.1084,128.69,128.67,1.3248]
[1725817104846,3.1084,128.69,128.67,9.6848]
[1725817105145,3.1086,128.68,128.67,9.6848]
[1725817108447,3.1082,128.7,128.67,9.6848]
[1725817108651,12.32433234,128.73,128.67,9.6848]
[1725817108953,3.1084,128.69,128.67,9.6848]
[1725817110148,12.32433234,128.73,128.67,9.6848]
[1725817110345,12.32433234,128.73,128.67,1.3248]
[1725817110545,3.1084,128.69,128.67,1.3248]
[1725817110850,3.1084,128.69,128.68,8.36]
[1725817112261,3.96433234,128.73,128.68,8.36]
[1725817112550,9.6472,128.74,128.69,8.36]
[1725817113060,13.56053074,128.74,128.69,8.36]
[1725817113554,3.1081,128.7,128.69,8.36]
[1725817113858,3.1084,128.69,128.68,8.36]
[1725817115562,3.1086,128.68,128.67,1.3248]
[1725817117256,3.1085,128.69,128.67,9.6848]
[1725817118954,262.65797783,128.84,128.68,3.1086]
[1725817118955,10.05744124,128.82,128.68,3.1086]
[1725817119156,2.96877073,128.8,128.72,8.36]
[1725817119351,8.36,128.78,128.72,8.36]
[1725817119548,0.28567073,128.77,128.72,8.36]
[1725817120358,3.1075,128.73,128.72,8.36]
[1725817121754,3.1072,128.74,128.72,8.36]
[1725817122258,3.1074,128.73,128.72,8.36]
[1725817129162,2.6831,128.8,128.72,8.36]
[1725817129360,3.1069,128.75,128.74,8.36]
[1725817131367,3.84684124,128.82,128.74,8.36]
[1725817131664,0.28557673,128.81,128.76,8.36]
[1725817131864,4.2118492,128.81,128.76,8.36]
[1725817132166,0.28557673,128.8,128.76,8.36]
[1725817132473,3.1066,128.77,128.76,8.36]
[1725817133266,3.1066,128.77,128.75,8.36]
[1725817133570,3.1067,128.76,128.75,8.36]
[1725817135660,2.6978,128.85,128.75,8.36]
[1725817135864,2.6978,128.85,128.77,8.36]
[1725817135865,0.28557075,128.84,128.77,8.36]
[1725817136064,8.36,128.83,128.77,8.36]
[1725817136275,0.28557075,128.82,128.77,8.36]
[1725817136665,3.1062,128.78,128.77,8.36]
[1725817141175,12.27525555,128.81,128.73,4.0249]
[1725817141378,12.27525555,128.81,128.74,8.36]
[1725817141379,0.28555133,128.8,128.74,8.36]
[1725817141878,3.1066,128.77,128.74,8.36]
[1725817142379,3.1066,128.77,128.76,8.36]
[1725817143080,3.91525555,128.81,128.76,8.36]
[1725817143272,8.36,128.84,128.78,8.36]
[1725817143576,8.64551851,128.83,128.73,7.86898824]
[1725817143775,8.64551851,128.82,128.73,7.86898824]
[1725817143993,3.1062,128.78,128.76,8.36]
[1725817144774,3.1064,128.77,128.76,8.36]
[1725817145984,6.56674896,128.85,128.76,8.36]
[1725817146274,0.2855274,128.84,128.78,8.36]
[1725817147981,3.1059,128.8,128.78,8.36]
[1725817149182,5.20984896,128.85,128.79,8.36]
[1725817149382,5.20984896,128.85,128.73,7.86898824]
[1725817149383,0.28549444,128.84,128.82,8.36]
[1725817149581,0.28549444,128.84,128.81,8.36]
[1725817149878,0.28549444,128.83,128.77,8.36]
[1725817150082,8.64549444,128.83,128.77,8.36]
[1725817150283,4.09907964,128.82,128.79,8.36]
[1725817150482,3.8135852,128.82,128.79,8.36]
[1725817150681,3.1059,128.8,128.79,8.36]
[1725817152281,3.1066,128.77,128.73,7.86898824]
[1725817152485,3.1066,128.77,128.76,8.36]
[1725817152681,3.8135852,128.82,128.73,7.86898824]
[1725817152682,12.1735852,128.82,128.73,7.86898824]
[1725817152886,3.1067,128.76,128.73,7.86898824]
[1725817153184,3.8135852,128.82,128.75,8.36]
[1725817153384,0.28553718,128.81,128.78,8.36]
[1725817153571,3.1059,128.79,128.78,8.36]
[1725817155278,3.39144142,128.79,128.78,8.36]
[1725817155778,3.1059,128.79,128.78,8.36]
[1725817155979,3.39144142,128.79,128.78,8.36]
[1725817156586,3.1059,128.79,128.78,8.36]
[1725817159888,12.27628814,128.84,128.78,8.36]
[1725817160189,1.65712546,128.83,128.78,8.36]
[1725817160390,0.28552546,128.82,128.78,8.36]
[1725817161075,8.36,128.79,128.73,4.0249]
[1725817161282,0.28552554,128.78,128.73,10.9889]
[1725817161482,3.87115439,128.77,128.73,10.9889]
[1725817161684,0.28552554,128.76,128.73,9.6405]
[1725817162085,8.36,128.79,128.73,9.6405]
[1725817162392,3.1071,128.74,128.73,9.6405]
[1725817162793,3.1071,128.74,128.73,8.36]
[1725817172885,3.1071,128.74,128.7,6.99828394]
[1725817172886,3.1074,128.73,128.7,3.89018394]
[1725817173090,3.1074,128.73,128.72,8.36]
[1725817173293,3.1074,128.73,128.72,12.29093458]
[1725817180011,3.1074,128.73,128.72,3.93093458]
[1725817180197,3.1076,128.72,128.71,8.36]
[1725817180395,8.36,128.76,128.69,3.812347]
[1725817180596,8.36,128.76,128.71,8.36]
[1725817180804,3.1076,128.72,128.71,8.36]
[1725817191411,3.1076,128.72,128.68,1.2953]
[1725817191412,8.36,128.74,128.68,1.2953]
[1725817191610,8.36,128.73,128.66,8.36]
[1725817191914,3.1091,128.66,128.65,144.94453949]
[1725817192105,3.92424242,128.68,128.64,8.36]
[1725817192300,8.36,128.7,128.64,8.36]
[1725817192520,3.1093,128.65,128.64,8.36]
[1725817193303,8.36,128.67,128.57,5.7493]
[1725817193505,8.36,128.66,128.58,5.47877061]
[1725817193711,8.36,128.66,128.61,8.36]
[1725817193712,3.97310323,128.65,128.61,8.36]
[1725817193907,3.1102,128.62,128.61,8.36]
[1725817194104,8.36,128.68,128.61,8.36]
[1725817194405,8.36,128.68,128.62,8.36]
[1725817194714,8.36,128.71,128.65,8.36]
[1725817195604,5.21565337,128.72,128.64,8.36]
[1725817195605,3.1093,128.65,128.64,8.36]
[1725817196511,3.1089,128.67,128.64,8.36]
[1725817196704,3.1089,128.67,128.65,8.36]
[1725817201710,5.21565337,128.72,128.66,8.36]
[1725817202015,5.21565337,128.72,128.68,8.36]
[1725817202214,3.1081,128.71,128.68,8.36]
[1725817202419,5.21565337,128.72,128.68,8.36]
[1725817202910,3.1083,128.7,128.68,8.36]
[1725817205320,3.1079,128.71,128.68,8.36]
[1725817206231,9.7154,128.77,128.7,8.36]
[1725817206516,9.7154,128.77,128.72,8.36]
[1725817206908,9.7154,128.77,128.64,1.3647]
[1725817207113,119.15250622,128.76,128.7,8.36]
[1725817207311,3.1076,128.73,128.7,8.36]
[1725817207515,6.92920901,128.73,128.7,8.36]
[1725817208418,3.1077,128.72,128.7,8.36]
[1725817209836,3.1075,128.73,128.7,8.36]
[1725817210239,3.1075,128.73,128.72,8.36]
[1725817214729,1.3201,128.75,128.72,8.36]
[1725817215435,3.1074,128.74,128.72,8.36]
[1725817215739,3.80254876,128.74,128.72,8.36]
[1725817216439,110.79250622,128.76,128.73,8.36]
[1725817216636,1.3554,128.77,128.73,8.36]
[1725817216825,3.1071,128.74,128.73,8.36]
[1725817217025,3.1071,128.74,128.7,3.88414018]
[1725817217026,3.90240111,128.74,128.71,8.36]
[1725817217239,8.36,128.76,128.71,8.36]
[1725817217630,3.1075,128.73,128.71,8.36]
[1725817217831,1.3554,128.77,128.71,8.36]
[1725817218026,1.3554,128.77,128.74,8.36]
[1725817218450,8.36,128.79,128.74,8.36]
[1725817218739,0.28559735,128.78,128.74,8.36]
[1725817219338,3.1068,128.76,128.74,8.36]
[1725817221238,3.1069,128.75,128.74,8.36]
[1725817222237,3.1068,128.76,128.74,8.36]
[1725817223440,3.1069,128.75,128.74,8.36]
[1725817224040,2.782,128.8,128.74,8.36]
[1725817224244,1.391,128.84,128.79,8.36]
[1725817224436,3.1055,128.81,128.79,8.36]
[1725817224635,1.391,128.84,128.74,4.0464]
[1725817224636,9.751,128.84,128.74,4.0464]
[1725817224844,9.751,128.84,128.78,8.36]
[1725817225047,3.1056,128.81,128.78,8.36]
[1725817225241,9.751,128.84,128.78,8.36]
[1725817226352,8.36,128.82,128.76,8.36]
[1725817226539,8.36,128.81,128.75,8.36]
[1725817226742,8.36,128.8,128.74,15.06132432]
[1725817226940,3.1064,128.78,128.74,15.06132432]
[1725817227355,12.2125132,128.79,128.74,1.4033]
[1725817227951,1.391,128.84,128.75,8.36]
[1725817228146,3.1061,128.79,128.77,8.36]
[1725817230144,3.1062,128.78,128.76,8.36]
[1725817230657,3.1065,128.77,128.74,1.4033]
[1725817230956,8.36,128.82,128.76,8.36]
[1725817231146,3.1062,128.78,128.76,8.36]
[1725817233656,3.1064,128.77,128.76,8.36]
[1725817233854,1.391,128.84,128.76,8.36]
[1725817234158,0.28548237,128.83,128.78,8.36]
[1725817234757,0.28548237,128.83,128.74,1.4033]
[1725817234758,8.36,128.81,128.76,8.36]
[1725817235658,8.36,128.83,128.76,8.36]
[1725817235852,0.28551743,128.82,128.76,8.36]
[1725817236057,8.36,128.83,128.76,8.36]
[1725817236257,0.28552099,128.82,128.76,8.36]
[1725817238356,3.1064,128.77,128.76,8.36]
[1725817238858,3.1069,128.75,128.74,1.4033]
[1725817239059,12.25350629,128.79,128.73,145.68773814]
[1725817239256,9.6611,128.79,128.73,145.68773814]
[1725817239655,3.1071,128.75,128.73,145.68773814]
[1725817241863,13.58917208,128.79,128.73,145.68773814]
[1725817241864,3.1071,128.74,128.73,145.68773814]
[1725817243961,3.1071,128.74,128.73,154.04773814]
[1725817244356,3.1069,128.75,128.73,154.04773814]
[1725817244563,3.1069,128.75,128.74,8.36]
[1725817245266,1.391,128.84,128.74,8.36]
[1725817245466,1.391,128.84,128.81,8.36]
[1725817245467,0.2855328,128.83,128.81,8.36]
[1725817245861,1.391,128.85,128.81,8.36]
[1725817246062,0.28547913,128.84,128.81,8.36]
[1725817246363,3.79767597,128.86,128.81,8.36]
[1725817246562,0.28546572,128.85,128.81,8.36]
[1725817246765,3.1052,128.83,128.81,8.36]
[1725817248676,2.6922,128.88,128.82,8.36]
[1725817248965,2.6922,128.88,128.83,8.36]
[1725817248966,0.28543131,128.87,128.83,8.36]
[1725817249268,4.137257,128.87,128.83,8.36]
[1725817249569,3.85182569,128.87,128.83,8.36]
[1725817249768,3.1043,128.86,128.83,8.36]
[1725817250170,2.6922,128.88,128.83,8.36]
[1725817250370,3.1044,128.86,128.83,8.36]
[1725817250569,3.81648784,128.87,128.83,8.36]
[1725817251172,3.1047,128.85,128.83,8.36]
[1725817251573,23.33,128.94,128.84,8.36]
[1725817251768,8.36,128.91,128.84,8.36]
[1725817252070,3.1043,128.86,128.84,8.36]
[1725817252880,8.36,128.87,128.82,1.3261]
[1725817253168,3.79191642,128.86,128.82,1.3261]
[1725817253376,3.1045,128.85,128.82,9.6861]
[1725817253673,122.52578996,128.93,128.82,9.6861]
[1725817253971,122.52578996,128.93,128.83,8.36]
[1725817253972,8.36,128.89,128.83,8.36]
[1725817254176,3.90916416,128.88,128.83,8.36]
[1725817254469,3.1044,128.86,128.83,8.36]
[1725817254774,3.90916416,128.88,128.83,8.36]
[1725817255669,3.1041,128.87,128.83,8.36]
[1725817255970,3.90916416,128.88,128.83,8.36]
[1725817256174,3.1045,128.86,128.83,8.36]
[1725817256366,3.97089394,128.87,128.83,8.36]
[1725817256562,8.36,128.89,128.83,8.36]
[1725817256768,0.28539059,128.88,128.83,8.36]
[1725817256974,3.85209324,128.87,128.83,8.36]
[1725817257376,3.1045,128.85,128.83,8.36]
[1725817258177,3.1047,128.84,128.82,9.6861]
[1725817259179,3.83811669,128.87,128.82,9.6861]
[1725817259880,3.1047,128.85,128.82,9.6861]
[1725817260079,8.36,128.87,128.82,1.3261]
[1725817260286,8.36,128.88,128.82,9.6861]
[1725817260578,3.1046,128.85,128.82,9.6861]
[1725817261171,3.1048,128.84,128.82,9.6861]
[1725817266473,145.85578996,128.93,128.83,8.36]
[1725817266677,8.36,128.91,128.85,8.36]
[1725817266874,0.28539622,128.9,128.85,8.36]
[1725817267079,0.28539622,128.9,128.88,8.36]
[1725817267284,3.91981439,128.9,128.88,8.36]
[1725817267487,11.0357,128.93,128.82,1.3261]
[1725817267488,3.1041,128.87,128.82,1.3261]
[1725817267679,3.1041,128.87,128.85,8.36]
[1725817267980,3.82005282,128.89,128.86,8.36]
[1725817268286,3.81515888,128.98,128.88,8.36]
[1725817268486,3.81515888,128.98,128.91,8.36]
[1725817268487,8.64529784,128.97,128.91,8.36]
[1725817268684,8.64529784,128.97,128.82,1.3261]
[1725817268685,8.64529784,128.96,128.82,1.3261]
[1725817268887,0.28528127,128.95,128.89,8.36]
[1725817269177,189.0,129.09,128.82,1.3261]
[1725817269178,117.09769663,129.1,128.94,8.36]
[1725817269384,8.36,129.02,128.96,8.36]
[1725817269580,0.28519262,129.01,128.96,8.36]
[1725817269891,8.64519262,129.01,128.93,8.36]
[1725817270188,3.1016,128.98,128.95,8.36]
[1725817272188,3.1016,128.98,128.93,4.1541]
[1725817272490,12.14557749,129.0,128.95,8.36]
[1725817272690,8.36,129.0,128.95,8.36]
[1725817273082,3.1018,128.97,128.95,8.36]
[1725817274491,3.1018,128.96,128.93,4.1541]
[1725817274694,3.1018,128.96,128.93,12.5141]
[1725817275286,3.1017,128.97,128.94,8.36]
[1725817275489,8.36,129.0,128.94,8.36]
[1725817275685,12.20027228,129.0,128.94,8.36]
[1725817276091,3.102,128.96,128.94,8.36]
[1725817277398,3.1021,128.95,128.93,12.5141]
[1725817277593,3.1021,128.95,128.93,11.142]
[1725817278482,3.1024,128.94,128.93,8.36]
[1725817278684,8.36,128.99,128.93,8.36]
[1725817278883,0.28518513,128.98,128.93,8.36]
[1725817279490,3.1023,128.94,128.93,8.36]
[1725817281403,3.1027,128.93,128.92,8.36]
[1725817284903,3.1025,128.94,128.92,8.36]
[1725817285105,9.6556,128.98,128.92,8.36]
[1725817285401,8.6452281,128.97,128.9,8.36]
[1725817285600,0.2852281,128.96,128.9,8.36]
[1725817285798,3.1028,128.93,128.9,8.36]
[1725817286702,1.2956,128.98,128.89,2.6689]
[1725817286896,9.97063354,128.97,128.9,8.36]
[1725817287096,0.28523354,128.96,128.9,8.36]
[1725817287398,8.36,128.95,128.89,11.0289]
[1725817287791,3.1032,128.91,128.89,11.0289]
[1725817288402,3.1033,128.9,128.89,8.36]
[1725817288593,12.16004655,128.92,128.81,2.7409]
[1725817288902,12.16004655,128.92,128.86,8.36]
[1725817289106,3.104,128.87,128.86,8.36]
[1725817289401,8.36,128.88,128.82,8.36]
[1725817290202,3.1047,128.85,128.82,8.36]
[1725817292100,3.1044,128.86,128.84,8.36]
[1725817293015,3.1042,128.87,128.85,8.36]
[1725817293900,3.1042,128.87,128.82,3.1052]
[1725817294099,3.1042,128.87,128.86,8.36]
[1725817295009,3.1042,128.87,128.85,8.36]
[1725817297305,3.1042,128.86,128.85,8.36]
[1725817297506,16.04904276,128.91,128.85,8.36]
[1725817297707,3.1042,128.87,128.85,8.36]
[1725817299312,3.1039,128.88,128.85,8.36]
[1725817300713,3.1041,128.87,128.85,8.36]
[1725817301807,8.36,128.89,128.81,4.1092]
[1725817302015,8.36,128.86,128.81,1.3683]
[1725817302312,3.1055,128.81,128.77,2.5665]
[1725817302515,3.1055,128.81,128.79,8.36]
[1725817303206,3.1053,128.82,128.79,8.36]
[1725817303818,3.90126523,128.84,128.79,8.36]
[1725817304516,3.1053,128.82,128.79,8.36]
[1725817305210,3.1055,128.81,128.79,8.36]
[1725817305520,3.1055,128.81,128.78,8.36]
[1725817306117,3.1059,128.8,128.78,8.36]
[1725817306408,3.1059,128.8,128.79,8.36]
[1725817306620,8.36,128.85,128.79,8.36]
[1725817306926,3.79086743,128.84,128.79,8.36]
[1725817307215,8.36,128.86,128.79,8.36]
[1725817307917,3.1052,128.83,128.79,8.36]
[1725817308120,3.1052,128.83,128.78,20.87]
[1725817308813,3.95433719,128.84,128.78,20.87]
[1725817308814,3.1052,128.82,128.78,20.87]
[1725817311233,3.95433719,128.84,128.77,24.7025]
[1725817311526,20.87,128.85,128.77,24.7025]
[1725817311820,20.87,128.85,128.77,22.136]
[1725817312422,3.1057,128.8,128.77,22.136]
[1725817313811,3.1062,128.78,128.77,22.136]
[1725817314014,3.89928723,128.82,128.77,22.136]
[1725817314336,20.87,128.85,128.77,22.136]
[1725817315223,3.1058,128.8,128.77,22.136]
[1725817316226,3.1055,128.81,128.77,22.136]
[1725817317118,3.1057,128.8,128.77,22.136]
[1725817318322,3.9845,128.86,128.78,20.87]
[1725817320426,3.1054,128.82,128.78,20.87]
[1725817321533,3.1054,128.82,128.78,23.9761]
[1725817322325,3.1055,128.81,128.78,20.87]
[1725817325525,3.1055,128.81,128.78,23.9762]
[1725817328134,3.1055,128.81,128.8,8.35]
[1725817332137,3.1055,128.81,128.77,4.3724]
[1725817332341,3.1055,128.81,128.79,8.35]
[1725817333441,3.1057,128.8,128.79,8.35]
[1725817336843,3.1057,128.8,128.77,4.3724]
[1725817336844,3.1061,128.79,128.77,1.266]
[1725817337039,3.90968393,128.84,128.74,10.9151]
[1725817337040,8.35,128.82,128.74,10.9151]
[1725817337245,8.35,128.8,128.74,14.79419574]
[1725817337445,3.1067,128.76,128.74,10.9151]
[1725817337643,3.1067,128.76,128.74,9.6263]
[1725817337842,3.1067,128.76,128.74,8.35]
[1725817338351,3.1069,128.75,128.73,149.49694026]
[1725817338543,8.35,128.79,128.73,149.49694026]
[1725817339052,8.35,128.76,128.68,2.7734]
[1725817339234,8.35,128.76,128.69,8.35]
[1725817339438,3.8199192,128.75,128.71,8.35]
[1725817339644,3.1073,128.74,128.71,8.35]
[1725817340046,3.8199192,128.75,128.71,8.35]
[1725817340236,3.8199192,128.75,128.7,8.35]
[1725817340441,8.35,128.76,128.7,8.35]
[1725817340949,3.1076,128.73,128.7,8.35]
[1725817341652,3.91431013,128.73,128.68,11.1234]
[1725817341841,8.35,128.75,128.68,11.1234]
[1725817342449,12.22550512,128.75,128.68,11.1234]
[1725817342753,3.1077,128.72,128.68,11.1234]
[1725817342942,3.1077,128.72,128.68,8.35]
[1725817343244,8.35,128.74,128.68,8.35]
[1725817343446,3.108,128.71,128.68,8.35]
[1725817344040,8.35,128.74,128.67,1.2977]
[1725817344244,3.108,128.71,128.67,1.2977]
[1725817345046,6.9590258,128.71,128.67,1.2977]
[1725817345649,3.1082,128.7,128.67,1.2977]
[1725817346041,3.1086,128.68,128.67,1.2977]
[1725817346240,8.35,128.71,128.64,2.6136]
[1725817346446,8.35,128.69,128.64,2.6136]
[1725817346856,3.109,128.67,128.64,1.2982]
[1725817347153,3.109,128.67,128.63,12.18007932]
[1725817347648,3.1091,128.66,128.63,12.18007932]
[1725817350447,3.1089,128.67,128.63,12.18007932]
[1725817350755,3.1089,128.67,128.65,8.35]
[1725817351143,1.3969,128.77,128.66,8.35]
[1725817351345,8.35,128.73,128.66,8.35]
[1725817351543,8.35,128.72,128.66,8.35]
[1725817351749,2.731,128.76,128.68,8.35]
[1725817351949,6.60071393,128.76,128.68,8.35]
[1725817352143,8.35,128.75,128.68,8.35]
[1725817352351,3.1078,128.72,128.68,8.35]
[1725817353157,3.1075,128.73,128.69,8.35]
[1725817354351,3.1075,128.73,128.69,20.9]
[1725817354959,3.86155161,128.75,128.69,20.9]
[1725817355150,2.731,128.76,128.69,20.9]
[1725817355456,3.1072,128.74,128.69,20.9]
[1725817355657,6.91888135,128.74,128.69,20.9]
[1725817355952,3.1074,128.73,128.69,20.9]
[1725817357351,6.62584813,128.76,128.69,20.9]
[1725817357558,6.62584813,128.76,128.67,3.83706467]
[1725817357559,20.9,128.75,128.67,24.73706467]
[1725817358052,3.1078,128.72,128.67,24.73706467]
[1725817358257,6.62584813,128.76,128.7,20.9]
[1725817358258,2.731,128.76,128.7,20.9]
[1725817358460,2.731,128.76,128.7,24.88228985]
[1725817358461,6.70201958,128.76,128.7,24.88228985]
[1725817358655,2.731,128.76,128.7,20.9]
[1725817359160,3.1069,128.75,128.7,20.9]
[1725817360453,3.1072,128.74,128.7,20.9]
[1725817362760,3.1072,128.74,128.69,27.8102656]
[1725817363257,2.731,128.76,128.66,1.304]
[1725817363258,23.631,128.76,128.67,24.0087]
[1725817363465,23.631,128.76,128.68,3.88258605]
[1725817363861,23.631,128.76,128.67,24.0087]
[1725817364367,23.631,128.76,128.67,27.79726165]
[1725817364557,3.1076,128.73,128.67,27.79726165]
[1725817366364,3.1077,128.72,128.67,27.79726165]
[1725817366562,23.631,128.76,128.67,24.68856165]
[1725817367057,3.1081,128.7,128.67,20.9]
[1725817373167,3.1088,128.68,128.66,1.304]
[1725817373465,3.1088,128.68,128.65,1.3136]
[1725817373971,3.1088,128.68,128.64,4.3884]
[1725817375769,3.1088,128.68,128.64,8.34992351]
[1725817376073,3.1088,128.68,128.65,8.35]
[1725817377075,8.35,128.69,128.64,1.279]
[1725817377577,3.1089,128.67,128.65,8.35]
[1725817381067,3.1087,128.68,128.65,8.35]
[1725817382470,3.1084,128.69,128.65,11.4591]
[1725817382672,8.35,128.73,128.68,8.35]
[1725817383073,3.1081,128.71,128.68,8.35]
[1725817383675,3.1076,128.73,128.68,11.4585]
[1725817383876,2.731,128.76,128.69,8.35]
[1725817383877,8.35,128.75,128.69,8.35]
[1725817385671,3.1076,128.73,128.69,8.35]
[1725817386878,3.1076,128.73,128.69,9.6836]
[1725817388482,3.1077,128.72,128.69,9.6836]
[1725817389181,3.1075,128.73,128.69,9.6836]
[1725817390387,3.87308486,128.77,128.71,8.35]
[1725817390686,8.35,128.78,128.71,8.35]
[1725817391174,12.17188374,128.78,128.71,8.35]
[1725817391374,8.35,128.77,128.71,8.35]
[1725817392082,3.1073,128.74,128.71,8.35]
[1725817392575,8.35,128.75,128.69,9.6836]
[1725817392984,8.35,128.73,128.69,1.3336]
[1725817393880,8.35,128.73,128.65,2.7026]
[1725817393881,8.35,128.72,128.65,2.7026]
[1725817394177,3.80508276,128.71,128.65,11.0526]
[1725817394381,3.80508276,128.71,128.65,12.331]
[1725817394579,3.1083,128.7,128.66,8.35]
[1725817395379,3.87425196,128.71,128.66,8.35]
[1725817395585,8.35,128.72,128.66,8.35]
[1725817395780,3.1083,128.7,128.66,8.35]
[1725817396580,3.94963861,128.71,128.65,3.981]
[1725817396781,8.35,128.72,128.65,12.331]
[1725817398485,3.1085,128.69,128.65,12.331]
[1725817399584,3.1085,128.69,128.66,8.35]
[1725817401589,8.35,128.76,128.68,8.35]
[1725817401782,8.35,128.76,128.65,3.981]
[1725817401783,8.35,128.76,128.7,8.35]
[1725817402488,3.1075,128.73,128.7,8.35]
[1725817404984,6.46907043,128.78,128.72,8.35]
[1725817405184,3.1065,128.77,128.74,8.35]
[1725817406988,3.90853504,128.78,128.74,8.35]
[1725817406989,3.1062,128.78,128.74,8.35]
[1725817408996,3.106,128.79,128.75,8.35]
[1725817411085,3.1059,128.8,128.75,8.35]
[1725817411290,3.1059,128.8,128.77,8.35]
[1725817411590,1.286,128.86,128.77,8.35]
[1725817411591,3.94391361,128.82,128.77,8.35]
[1725817411992,3.1056,128.81,128.77,8.35]
[1725817413493,3.1058,128.8,128.77,8.35]
[1725817419306,3.1055,128.81,128.77,11.4564]
[1725817420097,3.1055,128.81,128.77,8.35]
[1725817421001,3.1057,128.8,128.77,8.35]
[1725817421907,3.1057,128.8,128.78,8.35]
[1725817423201,3.1057,128.8,128.77,8.35]
[1725817424506,3.106,128.79,128.77,8.35]
[1725817424702,8.35,128.81,128.75,8.35]
[1725817426298,3.1062,128.78,128.75,8.35]
[1725817426499,8.35,128.81,128.75,8.35]
[1725817427001,3.1065,128.77,128.75,8.35]
[1725817427509,8.35,128.8,128.72,4.0122]
[1725817427710,8.35,128.79,128.73,8.35]
[1725817428396,3.1068,128.76,128.73,8.35]
[1725817428998,3.1071,128.75,128.73,8.35]
[1725817430204,3.98113144,128.74,128.68,3.92519049]
[1725817430410,8.35,128.75,128.69,8.35]
[1725817430606,8.35,128.73,128.67,1.3659]
[1725817430913,3.86225691,128.76,128.67,1.3659]
[1725817430914,8.35,128.71,128.67,1.3659]
[1725817431220,8.35,128.71,128.66,9.7436]
[1725817431509,3.1085,128.69,128.66,9.7436]
[1725817431708,3.1085,128.69,128.66,1.3936]
[1725817431899,1.3531,128.77,128.66,9.7436]
[1725817432105,8.35,128.73,128.66,9.7436]
[1725817432304,8.35,128.72,128.65,9.7159]
[1725817433009,3.1086,128.69,128.65,9.7159]
[1725817433204,3.97318305,128.71,128.65,9.7159]
[1725817434018,8.35,128.72,128.65,9.7159]
[1725817434413,12.25944422,128.72,128.65,9.7159]
[1725817435111,3.1085,128.69,128.67,8.35]
[1725817436619,3.1085,128.69,128.65,1.3659]
[1725817436917,3.1088,128.68,128.65,9.7159]